bitfinex/quotes_BTCUSD_20220731
["timestamp","ask_amount","ask_price","bid_price","bid_amount"]
[1659305097624,0.005,23511.0,23509.0,0.4044369]
[1659305099426,0.005,23511.0,23509.0,0.1044369]
[1659305099657,0.005,23511.0,23509.0,0.4044369]
[1659305099887,0.005,23511.0,23509.0,0.1044369]
[1659305100119,0.005,23511.0,23509.0,0.4044369]
[1659305100352,0.005,23510.0,23509.0,0.04142003]
[1659305100593,0.005,23510.0,23508.0,0.21255]
[1659305100594,0.04140291,23509.0,23508.0,0.106274]
[1659305100823,0.16894,23507.0,23506.0,0.002]
[1659305101050,0.76243533,23507.0,23506.0,0.002]
[1659305101287,0.68447258,23507.0,23506.0,0.002]
[1659305101508,0.65867436,23507.0,23504.0,0.105301]
[1659305101725,0.47243636,23507.0,23504.0,0.105301]
[1659305101957,0.302742,23506.0,23504.0,0.105301]
[1659305102190,0.40725733,23507.0,23504.0,0.105301]
[1659305102464,0.73579755,23506.0,23504.0,0.105301]
[1659305102700,0.51206569,23505.0,23503.0,0.002]
[1659305102910,0.70999933,23504.0,23503.0,0.002]
[1659305103126,0.40725733,23504.0,23503.0,0.002]
[1659305103367,0.73579755,23504.0,23503.0,0.002]
[1659305104798,0.43305555,23504.0,23503.0,0.002]
[1659305105024,0.46499555,23504.0,23500.0,0.7171]
[1659305105254,0.40725733,23503.0,23500.0,0.7171]
[1659305105469,0.43919733,23503.0,23500.0,0.7171]
[1659305105688,0.40725733,23502.0,23501.0,0.01]
[1659305105910,0.40725733,23502.0,23500.0,0.7171]
[1659305106626,0.40725733,23501.0,23500.0,0.7171]
[1659305108530,0.40725733,23501.0,23500.0,0.7271]
[1659305108761,0.40725733,23505.0,23500.0,1.0271]
[1659305109004,0.5943,23511.0,23502.0,0.04160467]
[1659305109005,0.33183,23510.0,23502.0,0.04160467]
[1659305109236,0.60836036,23513.0,23504.0,0.09149361]
[1659305109492,0.027,23510.0,23509.0,0.4906101]
[1659305109719,0.027,23510.0,23509.0,0.99866661]
[1659305109958,0.027,23510.0,23509.0,0.602742]
[1659305110218,0.027,23510.0,23509.0,0.70240448]
[1659305110446,0.027,23510.0,23509.0,1.10966181]
[1659305110672,0.027,23510.0,23509.0,0.01]
[1659305110968,0.027,23510.0,23505.0,0.637649]
[1659305110969,0.46005555,23510.0,23505.0,0.212538]
[1659305111182,0.05,23508.0,23505.0,0.106269]
[1659305111408,0.40725733,23507.0,23505.0,0.106269]
[1659305111652,0.40725733,23509.0,23506.0,0.01]
[1659305111883,0.60836036,23513.0,23506.0,0.05877872]
[1659305112143,0.40725733,23512.0,23507.0,0.05651534]
[1659305112384,0.60836036,23513.0,23507.0,0.05651534]
[1659305112385,0.60836036,23513.0,23510.0,0.05]
[1659305112610,0.60836036,23513.0,23512.0,0.5]
[1659305112824,0.60836036,23513.0,23512.0,1.577704]
[1659305113056,0.60836036,23513.0,23512.0,1.12709359]
[1659305113274,0.60836036,23513.0,23512.0,0.65213159]
[1659305113750,0.60836036,23513.0,23512.0,1.30213159]
[1659305114018,0.60836036,23513.0,23512.0,1.7220324]
[1659305114236,0.60836036,23513.0,23512.0,1.5220324]
[1659305114487,0.60836036,23513.0,23512.0,1.0720324]
[1659305115627,0.60836036,23513.0,23512.0,1.05938892]
[1659305116587,0.60836036,23513.0,23512.0,0.602742]
[1659305116819,0.60836036,23513.0,23512.0,0.3]
[1659305117050,0.60836036,23513.0,23511.0,0.15939967]
[1659305117299,0.60836036,23513.0,23512.0,0.302742]
[1659305117529,0.60836036,23513.0,23512.0,0.3]
[1659305117765,0.60836036,23513.0,23512.0,0.602742]
[1659305119425,0.60836036,23513.0,23512.0,0.302742]
[1659305119662,0.60836036,23513.0,23507.0,0.019]
[1659305119663,0.35274,23512.0,23507.0,0.019]
[1659305119910,0.35274,23512.0,23504.0,0.106288]
[1659305119911,0.05,23508.0,23504.0,0.106288]
[1659305120140,0.05,23508.0,23502.0,0.03312819]
[1659305120141,0.05480836,23505.0,23502.0,0.03312819]
[1659305120388,1.01010833,23504.0,23502.0,0.03312819]
[1659305120623,1.11491669,23503.0,23502.0,0.03312819]
[1659305121556,0.71010833,23503.0,23502.0,0.03312819]
[1659305121820,0.089,23508.0,23502.0,0.03312819]
[1659305121821,0.039,23508.0,23502.0,0.04577167]
[1659305122050,0.039,23508.0,23503.0,0.04652716]
[1659305122051,0.44625733,23508.0,23503.0,0.04652716]
[1659305122519,0.44625733,23508.0,23504.0,0.01264348]
[1659305122749,0.32864922,23507.0,23503.0,0.15283716]
[1659305122991,0.302851,23506.0,23503.0,0.15283716]
[1659305123211,0.02579822,23507.0,23503.0,0.15283716]
[1659305123438,0.302851,23506.0,23503.0,0.15283716]
[1659305124034,0.40725733,23508.0,23503.0,0.15283716]
[1659305124247,0.40725733,23508.0,23504.0,0.01]
[1659305124713,0.302851,23507.0,23504.0,0.01]
[1659305124943,0.40725733,23508.0,23504.0,0.01]
[1659305125202,0.302851,23507.0,23503.0,0.15283716]
[1659305125422,0.40725733,23508.0,23503.0,0.15283716]
[1659305126357,0.302851,23507.0,23503.0,0.15283716]
[1659305126574,0.40725733,23508.0,23504.0,0.01]
[1659305126814,0.302851,23507.0,23504.0,0.01]
[1659305127046,0.302851,23506.0,23503.0,0.10631]
[1659305127276,0.302851,23505.0,23500.0,0.04521169]
[1659305127514,0.43305555,23505.0,23500.0,0.04521169]
[1659305127786,0.302851,23504.0,23500.0,0.04521169]
[1659305128012,0.06007587,23512.0,23502.0,0.106312]
[1659305128244,0.40725733,23511.0,23503.0,0.106309]
[1659305128468,0.302851,23510.0,23502.0,0.10837259]
[1659305128699,0.302851,23510.0,23500.0,0.0031]
[1659305128700,0.05,23507.0,23500.0,0.0031]
[1659305128924,0.40725733,23506.0,23500.0,0.0031]
[1659305129379,0.302851,23505.0,23500.0,0.0031]
[1659305129635,0.40725733,23504.0,23500.0,0.0031]
[1659305129875,0.02579822,23503.0,23500.0,0.0031]
[1659305130098,0.302851,23502.0,23500.0,0.0031]
[1659305130346,0.02579822,23503.0,23500.0,0.0031]
[1659305131211,0.40725733,23504.0,23501.0,0.01]
[1659305131441,0.40725733,23504.0,23500.0,0.0031]
[1659305132164,0.40725733,23504.0,23503.0,0.03312819]
[1659305132380,0.71010833,23504.0,23503.0,0.03312819]
[1659305133543,0.71010833,23504.0,23503.0,0.04312819]
[1659305133769,0.71010833,23504.0,23503.0,0.03312819]
[1659305134998,0.302851,23504.0,23503.0,0.03312819]
[1659305135221,0.03193,23509.0,23503.0,0.03312819]
[1659305135450,0.40725733,23508.0,23504.0,0.106319]
[1659305135668,0.32864922,23507.0,23504.0,0.106319]
[1659305135881,0.71010833,23506.0,23504.0,0.106319]
[1659305136100,0.302851,23505.0,23504.0,0.106319]
[1659305136815,0.40725733,23506.0,23504.0,0.116319]
[1659305137021,0.302851,23505.0,23504.0,0.116319]
[1659305137280,0.00265366,23505.0,23504.0,0.116319]
[1659305137488,0.30550466,23505.0,23504.0,0.13944719]
[1659305137738,0.00265366,23505.0,23504.0,0.55670452]
[1659305137968,0.00265366,23505.0,23504.0,1.34281727]
[1659305138192,0.00265366,23505.0,23504.0,1.40831175]
[1659305138666,0.07,23511.0,23505.0,0.206282]
[1659305138881,0.07,23511.0,23507.0,0.3745546]
[1659305139104,0.07,23511.0,23508.0,0.82815778]
[1659305139438,0.60836036,23513.0,23509.0,0.81353433]
[1659305139632,0.60836036,23513.0,23510.0,0.71010833]
[1659305139768,0.60836036,23513.0,23511.0,0.3441608]
[1659305140008,0.63415858,23513.0,23511.0,0.10014369]
[1659305140241,0.60836036,23513.0,23511.0,0.11014369]
[1659305140480,0.60842969,23513.0,23511.0,0.11014369]
[1659305140738,0.60842969,23513.0,23511.0,0.41014369]
[1659305140962,0.60842969,23513.0,23512.0,0.05]
[1659305141184,0.61349462,23513.0,23512.0,0.05]
[1659305141384,0.61349462,23513.0,23511.0,0.41014369]
[1659305141608,0.61349462,23513.0,23511.0,0.11014369]
[1659305141827,0.61349462,23513.0,23509.0,0.05794965]
[1659305141828,0.10480836,23512.0,23509.0,0.05794965]
[1659305142054,0.05480836,23510.0,23508.0,0.106284]
[1659305142266,0.05,23509.0,23508.0,0.106284]
[1659305142724,0.64542462,23513.0,23508.0,0.106284]
[1659305142939,0.71010833,23512.0,23508.0,0.106284]
[1659305143152,0.71010833,23511.0,23508.0,0.106284]
[1659305143389,0.302851,23510.0,23509.0,0.01]
[1659305143608,0.43305555,23511.0,23508.0,0.106284]
[1659305144312,0.43305555,23511.0,23509.0,0.01]
[1659305144565,0.43305555,23511.0,23508.0,0.15783189]
[1659305144566,0.302851,23510.0,23508.0,0.15783189]
[1659305144799,0.43305555,23511.0,23508.0,0.15783189]
[1659305145106,0.43305555,23511.0,23508.0,0.45783189]
[1659305145290,0.43963188,23511.0,23508.0,0.45783189]
[1659305145485,0.41495872,23511.0,23508.0,0.15783189]
[1659305145733,0.02579822,23510.0,23508.0,0.106284]
[1659305145965,0.41495872,23511.0,23508.0,0.106284]
[1659305146795,0.02579822,23510.0,23508.0,0.212577]
[1659305147012,0.02579822,23510.0,23508.0,0.106284]
[1659305147487,0.10480836,23508.0,23500.0,0.06170859]
[1659305147709,1.01010833,23507.0,23500.0,0.04952856]
[1659305147927,0.302851,23506.0,23501.0,0.04210327]
[1659305148146,0.302851,23505.0,23501.0,0.04210327]
[1659305148410,0.40725733,23507.0,23501.0,0.04210327]
[1659305148631,0.40725733,23507.0,23502.0,0.16577757]
[1659305148632,0.302851,23506.0,23502.0,0.16577757]
[1659305148861,0.40725733,23507.0,23502.0,0.16577757]
[1659305149537,0.0050177,23505.0,23502.0,0.16577757]
[1659305150702,0.40725733,23507.0,23502.0,0.00247345]
[1659305150954,0.50725733,23507.0,23502.0,0.10878545]
[1659305151401,0.40725733,23507.0,23502.0,0.10878545]
[1659305152708,0.50725733,23507.0,23502.0,0.10878545]
[1659305153207,0.40725733,23507.0,23502.0,0.10878545]
[1659305153453,0.41470207,23507.0,23502.0,0.10878545]
[1659305153929,0.41470207,23507.0,23506.0,1.0]
[1659305153930,0.00744474,23507.0,23506.0,1.0]
[1659305154141,0.079,23512.0,23506.0,1.51258177]
[1659305154370,0.079,23512.0,23508.0,0.05]
[1659305154582,0.079,23512.0,23509.0,0.621655]
[1659305155071,0.60836036,23513.0,23510.0,0.602851]
[1659305155072,0.60842425,23513.0,23510.0,0.602851]
[1659305155313,0.60842425,23513.0,23511.0,0.459117]
[1659305155543,0.00752442,23512.0,23511.0,0.47176048]
[1659305155779,0.00752442,23512.0,23511.0,0.77176048]
[1659305156491,0.00752442,23512.0,23511.0,0.72176048]
[1659305158805,0.00752442,23512.0,23511.0,0.72207961]
[1659305160180,0.00752442,23512.0,23511.0,0.106266]
[1659305160181,0.13242442,23512.0,23511.0,0.106266]
[1659305160444,0.39247542,23512.0,23509.0,0.318825]
[1659305160680,0.08962442,23512.0,23509.0,0.318825]
[1659305160900,0.13962442,23512.0,23509.0,0.318825]
[1659305161361,0.00752442,23512.0,23509.0,0.32129844]
[1659305161817,0.00752442,23512.0,23510.0,0.3]
[1659305162043,0.00752442,23512.0,23510.0,0.406284]
[1659305162482,0.00752442,23512.0,23510.0,0.106284]
[1659305163469,0.00752442,23512.0,23510.0,0.376284]
[1659305163696,0.00752442,23512.0,23510.0,0.076284]
[1659305163940,0.41478175,23512.0,23510.0,0.076284]
[1659305164188,0.302851,23511.0,23510.0,0.076284]
[1659305164429,0.41478175,23512.0,23510.0,0.076284]
[1659305164652,0.302851,23511.0,23510.0,0.076284]
[1659305164858,0.41478175,23512.0,23510.0,0.076284]
[1659305165089,0.41478175,23512.0,23510.0,0.07613029]
[1659305165559,0.302851,23511.0,23510.0,0.07613029]
[1659305165791,0.64175446,23513.0,23510.0,0.37860373]
[1659305166043,0.302851,23512.0,23510.0,0.37644943]
[1659305166264,0.64168514,23513.0,23510.0,0.37613029]
[1659305166492,0.00242095,23511.0,23510.0,0.37613029]
[1659305167137,0.00242095,23511.0,23510.0,0.07613029]
[1659305167374,0.00242095,23511.0,23510.0,0.07860373]
[1659305167611,0.00242095,23511.0,23510.0,0.38145473]
[1659305168115,0.00242095,23511.0,23510.0,0.37898129]
[1659305168334,0.00242095,23511.0,23510.0,0.67898129]
[1659305168550,0.00242095,23511.0,23510.0,0.68145473]
[1659305169018,0.00242095,23511.0,23510.0,0.37860373]
[1659305169702,0.00242095,23511.0,23510.0,0.68145473]
[1659305170468,0.00242095,23511.0,23510.0,0.37898129]
[1659305170687,0.00242095,23511.0,23510.0,0.07874738]
[1659305170907,0.00242095,23511.0,23510.0,0.38159838]
[1659305171366,0.00470204,23511.0,23510.0,0.38159838]
[1659305171599,0.00470204,23511.0,23510.0,0.68159838]
[1659305172075,0.00470204,23511.0,23510.0,0.67898129]
[1659305173222,0.00470204,23511.0,23510.0,0.68145473]
[1659305173657,0.00470204,23511.0,23510.0,0.67898129]
[1659305174072,0.00470204,23511.0,23510.0,0.68145473]
[1659305174501,0.00470204,23511.0,23510.0,0.67898129]
[1659305175166,0.00470204,23511.0,23510.0,0.68145473]
[1659305175865,0.12960204,23511.0,23509.0,0.34007255]
[1659305176090,0.12960204,23511.0,23505.0,0.051]
[1659305176091,0.45480836,23510.0,23505.0,0.051]
[1659305176319,0.71010833,23509.0,23505.0,0.051]
[1659305176549,0.71010833,23508.0,23505.0,0.051]
[1659305176779,0.71010833,23507.0,23500.0,0.19332015]
[1659305177010,0.302851,23506.0,23500.0,0.19332015]
[1659305177245,0.302851,23505.0,23500.0,0.19332015]
[1659305177487,0.40725733,23507.0,23500.0,0.19332015]
[1659305177699,0.30513209,23506.0,23500.0,0.19332015]
[1659305178007,0.00228109,23506.0,23500.0,0.19332015]
[1659305178462,0.302851,23505.0,23500.0,0.002]
[1659305178693,0.00228109,23506.0,23503.0,0.00247344]
[1659305178891,0.302851,23505.0,23500.0,0.002]
[1659305179110,0.00228109,23506.0,23500.0,0.002]
[1659305179334,0.302851,23505.0,23500.0,0.002]
[1659305179544,0.00446078,23505.0,23500.0,0.002]
[1659305179778,0.00446078,23505.0,23499.0,0.406324]
[1659305179779,0.03332478,23504.0,23498.0,0.01]
[1659305180018,0.05480836,23494.0,23490.0,0.0131]
[1659305180244,0.05480836,23492.0,23490.0,0.0131]
[1659305180503,0.71010833,23491.0,23490.0,0.0131]
[1659305180730,0.71023339,23491.0,23490.0,0.0131]
[1659305180968,0.05480836,23489.0,23488.0,0.002]
[1659305181182,0.05480836,23489.0,23486.0,0.002]
[1659305181183,0.05480836,23487.0,23486.0,0.002]
[1659305181414,0.05480836,23485.0,23484.0,0.002]
[1659305181644,0.35782136,23485.0,23484.0,0.002]
[1659305181904,0.39114614,23485.0,23484.0,0.002]
[1659305182595,0.303013,23485.0,23484.0,0.04727344]
[1659305182838,0.00222937,23492.0,23484.0,0.04727344]
[1659305183067,0.30524237,23492.0,23485.0,0.40725733]
[1659305183296,0.00222937,23492.0,23487.0,0.05]
[1659305183551,0.00222937,23492.0,23487.0,0.45725733]
[1659305183779,0.00222937,23492.0,23491.0,0.05]
[1659305184000,0.00222937,23492.0,23491.0,1.36034377]
[1659305184237,0.00222937,23493.0,23492.0,0.05]
[1659305184461,0.00222937,23493.0,23492.0,1.06027033]
[1659305184941,0.00222937,23493.0,23492.0,1.11496381]
[1659305185159,0.00222937,23493.0,23492.0,1.51496381]
[1659305185392,0.00658901,23493.0,23492.0,1.57976381]
[1659305185739,0.3919,23510.0,23496.0,0.12757936]
[1659305185861,0.29988052,23507.0,23496.0,0.17757936]
[1659305186097,0.40725733,23509.0,23500.0,0.106314]
[1659305186321,0.40725733,23509.0,23501.0,0.53482606]
[1659305186539,0.40725733,23509.0,23502.0,0.3]
[1659305186758,0.40725733,23509.0,23502.0,0.456307]
[1659305187001,0.40725733,23509.0,23502.0,0.41895048]
[1659305187255,0.70725733,23509.0,23502.0,0.41895048]
[1659305187477,0.40725733,23508.0,23502.0,0.41895048]
[1659305187719,0.40725733,23508.0,23502.0,0.406307]
[1659305187928,0.40725733,23508.0,23502.0,0.456307]
[1659305188151,0.40725733,23508.0,23502.0,0.406307]
[1659305188837,0.40725733,23508.0,23501.0,0.53482606]
[1659305189055,0.303013,23507.0,23501.0,0.53482606]
[1659305189280,0.303013,23506.0,23501.0,0.53482606]
[1659305189540,0.303013,23505.0,23501.0,0.53482606]
[1659305189747,0.03332478,23504.0,23501.0,0.53482606]
[1659305189972,0.00215449,23507.0,23501.0,0.53482606]
[1659305190204,0.30516749,23507.0,23501.0,0.53482606]
[1659305190427,0.303013,23506.0,23501.0,0.53482606]
[1659305190650,0.00215449,23507.0,23501.0,0.58482606]
[1659305190905,0.00215449,23507.0,23501.0,0.59435896]
[1659305191159,0.30516749,23507.0,23501.0,0.58935896]
[1659305191620,0.30516749,23507.0,23501.0,0.53482606]
[1659305191840,0.303013,23506.0,23501.0,0.59034552]
[1659305192063,0.00215449,23507.0,23502.0,0.3]
[1659305192293,0.00215449,23507.0,23501.0,0.59034552]
[1659305192294,0.303013,23506.0,23501.0,0.59034552]
[1659305192744,0.30516749,23507.0,23501.0,0.59034552]
[1659305192964,0.303013,23506.0,23501.0,0.59034552]
[1659305193177,0.303013,23505.0,23501.0,0.59034552]
[1659305193458,0.03332478,23504.0,23501.0,0.12756873]
[1659305193663,0.30722622,23506.0,23501.0,0.12756873]
[1659305194106,0.303013,23505.0,23501.0,0.12756873]
[1659305194329,0.00421322,23506.0,23502.0,0.00247344]
[1659305194555,0.00210661,23504.0,23502.0,0.00247344]
[1659305195074,0.40936394,23504.0,23501.0,0.12756873]
[1659305195521,0.35782136,23503.0,23501.0,0.12756873]
[1659305195737,0.303013,23502.0,23501.0,0.12756873]
[1659305195976,0.40936394,23504.0,23501.0,0.12756873]
[1659305196226,0.303013,23503.0,23501.0,0.12756873]
[1659305196444,0.303013,23502.0,23501.0,0.12756873]
[1659305196676,0.05480836,23503.0,23501.0,0.12756873]
[1659305196898,0.03219972,23502.0,23501.0,0.12756873]
[1659305197123,0.03219972,23502.0,23498.0,0.206328]
[1659305197377,0.03428156,23502.0,23498.0,0.206328]
[1659305197827,0.00112506,23501.0,23498.0,0.206328]
[1659305198061,0.03428156,23502.0,23498.0,0.206328]
[1659305198770,0.03428156,23502.0,23498.0,0.186328]
[1659305198992,0.00112506,23501.0,23498.0,0.186328]
[1659305199207,0.00112506,23501.0,23499.0,0.00247344]
[1659305199444,0.00112506,23501.0,23498.0,0.186328]
[1659305199667,0.03638685,23502.0,23498.0,0.186328]
[1659305199898,0.00418713,23502.0,23498.0,0.236328]
[1659305200121,0.00418713,23502.0,23498.0,0.68738238]
[1659305200375,0.00418713,23502.0,23501.0,0.1]
[1659305200617,0.00418713,23502.0,23501.0,0.67560285]
[1659305200845,0.00418713,23502.0,23501.0,1.29125933]
[1659305201296,0.00208184,23503.0,23502.0,0.05]
[1659305201297,8.97e-06,23503.0,23502.0,0.05]
[1659305201531,8.97e-06,23503.0,23502.0,2.95787033]
[1659305201532,0.00207269,23503.0,23502.0,2.95787033]
[1659305201761,0.00207269,23503.0,23502.0,2.31256381]
[1659305202698,0.00203416,23503.0,23502.0,2.01256381]
[1659305204261,0.00431525,23511.0,23504.0,0.04205]
[1659305204490,0.00431525,23511.0,23506.0,0.17753335]
[1659305204713,0.00228109,23511.0,23507.0,0.76027033]
[1659305205037,0.00228109,23511.0,23508.0,1.01274377]
[1659305205231,0.00228109,23511.0,23509.0,0.51353333]
[1659305205437,0.00228109,23511.0,23509.0,0.56353333]
[1659305205655,0.00228109,23511.0,23510.0,0.3]
[1659305205879,0.00634809,23511.0,23510.0,0.3]
[1659305209784,0.00835738,23511.0,23510.0,0.3]
[1659305210556,0.00835738,23511.0,23510.0,0.295]
[1659305211172,0.00835738,23511.0,23509.0,0.06]
[1659305211414,0.00835738,23511.0,23509.0,0.01]
[1659305211615,0.55822478,23510.0,23509.0,0.01]
[1659305211744,0.86123778,23510.0,23509.0,0.01]
[1659305211971,0.37913778,23510.0,23509.0,0.01]
[1659305212179,0.00835738,23511.0,23509.0,0.01247344]
[1659305212647,0.04168216,23511.0,23509.0,0.01]
[1659305213299,0.02668216,23511.0,23509.0,0.01]
[1659305213521,0.02668216,23511.0,23509.0,0.13755408]
[1659305213753,0.00200929,23510.0,23509.0,0.18755408]
[1659305214183,0.00200929,23510.0,23509.0,0.13755408]
[1659305214626,0.00200929,23510.0,23509.0,0.01]
[1659305214627,0.71027033,23510.0,23509.0,0.01]
[1659305215308,0.76027033,23510.0,23509.0,0.01]
[1659305216477,1.16027033,23510.0,23509.0,0.01]
[1659305216923,1.18582743,23510.0,23509.0,0.01]
[1659305217369,1.18695249,23510.0,23509.0,0.01]
[1659305221981,1.13695249,23510.0,23509.0,0.01]
[1659305222205,0.09,23509.0,23507.0,0.12757509]
[1659305222688,0.40725733,23508.0,23507.0,0.12757509]
[1659305222690,0.02668216,23510.0,23507.0,0.13669116]
[1659305222691,0.00560595,23510.0,23507.0,0.13669116]
[1659305223067,0.00560595,23510.0,23509.0,0.05]
[1659305223293,0.60836036,23513.0,23512.0,0.05]
[1659305223772,0.60836036,23513.0,23512.0,1.55323907]
[1659305223774,0.60836036,23513.0,23512.0,1.66235514]
[1659305224001,0.60836036,23513.0,23512.0,1.67499862]
[1659305224238,0.60836036,23513.0,23512.0,2.07499862]
[1659305224460,0.63504252,23513.0,23512.0,1.61588255]
[1659305224684,0.60836036,23513.0,23512.0,1.55108255]
[1659305224897,0.60836036,23513.0,23512.0,1.53843907]
[1659305225115,0.60836036,23513.0,23512.0,1.48843907]
[1659305225354,0.60836036,23513.0,23512.0,1.55108255]
[1659305229473,0.60836036,23513.0,23512.0,2.40108255]
[1659305229619,0.60456821,23513.0,23512.0,2.46618255]
[1659305229827,0.60456821,23513.0,23512.0,2.50819377]
[1659305230029,0.60456821,23513.0,23512.0,2.95579377]
[1659305230265,0.60441483,23513.0,23512.0,2.50819377]
[1659305230468,0.60441483,23513.0,23512.0,1.66614377]
[1659305230687,0.60441483,23513.0,23512.0,2.47878725]
[1659305231225,0.60441483,23513.0,23512.0,2.92638725]
[1659305231452,0.60441483,23513.0,23512.0,2.95579377]
[1659305231971,0.60441483,23513.0,23512.0,2.46614377]
[1659305232381,0.60441483,23513.0,23512.0,2.91374377]
[1659305232613,0.60441483,23513.0,23512.0,2.95579377]
[1659305236650,0.60441483,23513.0,23512.0,2.63579377]
[1659305237799,0.60441483,23513.0,23512.0,2.64843725]
[1659305238028,0.60441483,23513.0,23512.0,0.74666139]
[1659305238262,0.60441483,23513.0,23507.0,2.35746003]
[1659305238263,0.05480836,23509.0,23507.0,0.03111711]
[1659305238483,0.4,23512.0,23506.0,0.01]
[1659305238484,0.302846,23508.0,23506.0,0.01]
[1659305238704,0.05480836,23507.0,23506.0,0.01]
[1659305238933,0.332,23511.0,23506.0,0.01]
[1659305239148,0.71010333,23510.0,23506.0,0.01]
[1659305239574,0.36152816,23509.0,23506.0,0.01]
[1659305239827,0.30469203,23508.0,23506.0,0.01]
[1659305240084,0.032,23507.0,23506.0,0.01]
[1659305240293,0.03384603,23508.0,23506.0,0.01]
[1659305240489,0.33669203,23508.0,23506.0,0.01]
[1659305240725,0.30469203,23508.0,23506.0,0.01]
[1659305242318,0.00184603,23508.0,23506.0,0.01]
[1659305242525,0.30469203,23508.0,23506.0,0.01]
[1659305242770,0.032,23507.0,23506.0,0.01]
[1659305242941,0.33669203,23508.0,23506.0,0.01]
[1659305243161,0.33669203,23508.0,23506.0,0.01911607]
[1659305243162,0.00184603,23508.0,23506.0,0.01911607]
[1659305243414,0.00184603,23508.0,23506.0,0.12541016]
[1659305243592,0.00184603,23508.0,23507.0,0.05]
[1659305244333,0.02852819,23508.0,23507.0,0.05]
[1659305244557,0.02852819,23508.0,23507.0,0.05313982]
[1659305245002,0.00184603,23508.0,23507.0,0.05313982]
[1659305245445,0.00184603,23508.0,23507.0,0.35313982]
[1659305246538,0.00184603,23508.0,23507.0,0.05313982]
[1659305246975,0.00184603,23508.0,23507.0,0.35313982]
[1659305247828,0.00184603,23508.0,23507.0,0.76039715]
[1659305248446,0.00184603,23508.0,23507.0,0.76951322]
[1659305248676,0.00184603,23508.0,23507.0,1.37235922]
[1659305248889,0.60441483,23513.0,23508.0,0.4976]
[1659305249100,0.60441483,23513.0,23512.0,0.5151]
[1659305249309,0.60441483,23513.0,23512.0,1.62520333]
[1659305249522,0.60441483,23513.0,23512.0,1.6343194]
[1659305249737,0.60441483,23513.0,23512.0,1.5530524]
[1659305249943,0.60441483,23513.0,23512.0,1.47883633]
[1659305250580,0.60441483,23513.0,23512.0,1.4879524]
[1659305250794,0.60441483,23513.0,23512.0,0.302846]
[1659305251052,1.31451916,23513.0,23511.0,0.10624577]
[1659305251272,0.84690269,23512.0,23511.0,0.10124577]
[1659305251474,0.87358485,23512.0,23511.0,0.10124577]
[1659305251678,0.82358485,23512.0,23511.0,0.10124577]
[1659305252355,0.82358485,23512.0,23506.0,0.01]
[1659305252356,0.15123423,23511.0,23506.0,0.01]
[1659305252595,0.334847,23510.0,23506.0,0.01]
[1659305252815,0.32952916,23509.0,23506.0,0.01]
[1659305253056,0.302847,23508.0,23506.0,0.01]
[1659305253259,0.02668216,23509.0,23506.0,0.01]
[1659305253473,0.05480836,23508.0,23507.0,0.10630424]
[1659305253669,0.05480836,23508.0,23507.0,0.15991646]
[1659305253670,0.35765536,23508.0,23507.0,0.15991646]
[1659305254094,0.38965536,23508.0,23507.0,0.15991646]
[1659305254301,0.334847,23508.0,23507.0,0.16903253]
[1659305254505,0.302847,23508.0,23507.0,0.16903253]
[1659305254736,0.302847,23510.0,23507.0,0.15991646]
[1659305254996,0.35765536,23508.0,23507.0,0.16253297]
[1659305255203,0.05480836,23508.0,23507.0,0.21253297]
[1659305255599,0.02668216,23509.0,23507.0,0.21253297]
[1659305256203,0.30287,23508.0,23507.0,0.21253297]
[1659305257106,0.02668216,23509.0,23507.0,0.21253297]
[1659305257221,0.30287,23508.0,23507.0,0.21253297]
[1659305257424,0.02668216,23509.0,23507.0,0.21253297]
[1659305257639,0.30287,23508.0,23507.0,0.21253297]
[1659305257881,0.03030408,23509.0,23507.0,0.21253297]
[1659305258100,0.30287,23508.0,23507.0,0.21253297]
[1659305258280,0.03030408,23509.0,23507.0,0.21253297]
[1659305260092,0.02530408,23509.0,23507.0,0.21253297]
[1659305260328,0.32817408,23509.0,23507.0,0.21253297]
[1659305260773,0.02530408,23509.0,23507.0,0.21253297]
[1659305260994,0.32817408,23509.0,23507.0,0.21253297]
[1659305261200,0.02888184,23509.0,23507.0,0.21253297]
[1659305261652,0.30287,23508.0,23507.0,0.21253297]
[1659305261859,0.02888184,23509.0,23507.0,0.21253297]
[1659305262706,0.71012733,23508.0,23507.0,0.10892075]
[1659305262935,0.79212733,23508.0,23507.0,0.10892075]
[1659305264565,0.79212733,23508.0,23507.0,0.10630424]
[1659305265522,0.79212733,23508.0,23507.0,0.22471708]
[1659305265523,0.30287,23508.0,23507.0,0.22471708]
[1659305265773,0.00357776,23509.0,23507.0,0.22471708]
[1659305266233,0.00357776,23509.0,23507.0,0.27471708]
[1659305266504,0.00357776,23509.0,23507.0,0.21422293]
[1659305266734,0.00357776,23509.0,23507.0,0.16422293]
[1659305266953,0.00357776,23509.0,23507.0,0.21422293]
[1659305268600,0.00357776,23509.0,23507.0,0.22471708]
[1659305268809,0.00357776,23509.0,23507.0,0.21422293]
[1659305269503,0.02888184,23509.0,23507.0,0.21422293]
[1659305269727,0.02888184,23509.0,23507.0,0.16422293]
[1659305269954,0.00357776,23509.0,23507.0,0.16422293]
[1659305270182,0.00357776,23509.0,23507.0,0.21422293]
[1659305270446,0.00357776,23509.0,23507.0,0.16422293]
[1659305270660,0.00357776,23509.0,23507.0,0.22471708]
[1659305270891,0.00357776,23509.0,23507.0,0.21422293]
[1659305271571,0.02888184,23509.0,23507.0,0.21422293]
[1659305271782,0.02888184,23509.0,23507.0,0.22471708]
[1659305272028,0.02888184,23509.0,23507.0,0.21422293]
[1659305272997,0.00357776,23509.0,23507.0,0.22471708]
[1659305273249,0.00357776,23509.0,23507.0,0.21422293]
[1659305273250,0.02888184,23509.0,23507.0,0.21422293]
[1659305273716,0.00357776,23509.0,23507.0,0.21422293]
[1659305274192,0.00470282,23509.0,23507.0,0.21422293]
[1659305274406,0.02888184,23509.0,23507.0,0.21422293]
[1659305275301,0.00357776,23509.0,23507.0,0.22471708]
[1659305275711,0.00357776,23509.0,23507.0,0.21422293]
[1659305275935,0.02775678,23509.0,23507.0,0.21422293]
[1659305276367,0.00112506,23508.0,23507.0,0.21422293]
[1659305276580,0.02775678,23509.0,23507.0,0.21422293]
[1659305277234,0.30287,23508.0,23507.0,0.22471708]
[1659305277452,0.00357776,23509.0,23507.0,0.33102108]
[1659305278064,0.00470282,23509.0,23507.0,0.32052693]
[1659305278517,0.00357776,23509.0,23507.0,0.73827841]
[1659305278737,0.00357776,23509.0,23508.0,0.71012733]